Cogmind - Beta 17.1 @@@ ROGUE MODE // 2026.09.19 @ 19:13:36 Player: Maynard Result: Destroyed by D-53 Grenadier with Mini Grenade Launcher Performance ------------- Evolutions (0) 0 Regions Visited (4) 800 Robots Destroyed (5) 25 Value Destroyed (94) 94 Prototype IDs (23) 460 Alien Tech Used (0) 0 Bonus (272) 272 TOTAL SCORE: 1651 Bonus ------- Aligned with FarCom 300 Friendly Fire -28 Cogmind --------- Core Integrity 0/250 Matter 300/300 Energy 99/100 System Corruption 0% Temperature Cool (0) Movement Core (100) Ox1 Location -9/Mines Parts ------- > --- POWER (1) -------- (None) > --- PROPULSION (2) --- (None) > --- UTILITY (2) ------ Small Storage Unit Structural Scanner > --- WEAPON (2) ------- (None) > --- INVENTORY (8) ---- Ion Engine Ion Engine Aluminum Leg Compact Wheel Medium Battery (150) Latent Energy Streamer Peak State ------------ > --- POWER ------------ Light Ion Engine > --- PROPULSION ------- Aluminum Leg Aluminum Leg > --- UTILITY ---------- Small Storage Unit Structural Scanner > --- WEAPON ----------- Latent Energy Streamer Assault Rifle > --- INVENTORY -------- Ion Engine Ion Engine Aluminum Leg Compact Wheel Medium Battery Small Laser Heavy Explosive Trap Heavy Explosive Trap [Rating: 16] Favorites ----------- Power Light Ion Engine Engine Light Ion Engine Propulsion Aluminum Leg Leg Aluminum Leg Utility Small Storage Unit Device Structural Scanner Storage Small Storage Unit Weapon Assault Rifle Energy Gun Small Laser Energy Cannon Latent Energy Streamer Ballistic Gun Assault Rifle Build | -11 -10 -10 -10 -9 ------- Run | Yrd Mat Min Exi Min Slots Evolved . | . . . . . Power . | . . . . . Propulsion . | . . . . . Utility . | . . . . . Weapon . | . . . . . Parts Attached 8 | 5 2 . 1 . Power 1 | 1 . . . . Engine 1 | 1 . . . . Core . | . . . . . Reactor . | . . . . . Propulsion 2 | 2 . . . . Treads . | . . . . . Leg 2 | 2 . . . . Wheel . | . . . . . Hover . | . . . . . Flight . | . . . . . Utility 2 | 1 1 . . . Device 1 | . 1 . . . Storage 1 | 1 . . . . Processor . | . . . . . Hackware . | . . . . . Protection . | . . . . . Artifact . | . . . . . Weapon 3 | 1 1 . 1 . Energy Gun 1 | . 1 . . . Energy Cannon 1 | . . . 1 . Ballistic Gun 1 | 1 . . . . Ballistic Cannon . | . . . . . Launcher . | . . . . . Special Weapon . | . . . . . Impact Weapon . | . . . . . Slashing Weapon . | . . . . . Piercing Weapon . | . . . . . Special Melee Weapon . | . . . . . Unidentified Prototypes . | . . . . . Parts Lost 5 | . . . . 5 Power 1 | . . . . 1 Propulsion 2 | . . . . 2 Utility . | . . . . . Weapon 2 | . . . . 2 Highest Loss Streak 5 | . . . . 5 To Critical Strikes . | . . . . . Average Backups 4 | 1 3 5 5 6 Power 1 | . 1 2 2 2 Propulsion 1 | . 1 2 2 2 Utility . | . . . . 1 Weapon 1 | . 1 1 1 1 Tool/Special . | . . . . . Unused Backups 6 | . . . 1 5 Power 2 | . . . . 2 Propulsion 2 | . . . . 2 Utility 1 | . . . . 1 Weapon 1 | . . . 1 . Tool/Special . | . . . . . Average Slot Usage (%) 98 | . 94 100 100 95 Engine 13 | . 14 14 14 11 Leg 28 | . 28 28 28 28 Device 13 | . 10 14 14 14 Storage 14 | . 14 14 14 14 Energy Gun 13 | . 12 14 13 11 Ballistic Gun 13 | . 14 14 14 11 Peak Build Rating 16 | 5 7 7 16 16 Average Rating 6 | 3 6 7 7 7 On Entrance 7 | . 5 7 7 16 Avg Prop Armor Cover (%) . | . . . . . Naked Turns . | . . . . . Heaviest Build 21 | 10 12 12 21 21 Greatest Support 20 | 20 20 20 20 20 Greatest Overweight (x) 1 | . . . 1 1 Average Overweight (x) . | . . . . . Largest Inventory Capacity 8 | 8 8 8 8 8 Average Capacity 7 | 7 8 8 8 8 Most Carried 8 | 4 5 8 8 8 Average Carried 6 | 1 3 6 7 6 Final Capacity 8 | 8 8 8 8 8 Final Carried 8 | 4 5 8 8 6 Class Distribution -------------------- 100% | Mutant Dominant Class ---------------- Mutant | -10/Materials Mutant | -10/Mines Mutant | -10/Exiles Mutant | -9/Mines Resources | -11 -10 -10 -10 -9 ----------- Run | Yrd Mat Min Exi Min Matter Collected 372 | 253 86 . . 33 Remotely . | . . . . . Salvage Created 205 | 71 101 . . 33 Parts 11 | 3 8 . . . Haulers Intercepted . | . . . . . Recyclers Shooed . | . . . . . Parts Field Recycled . | . . . . . Retrieved Matter . | . . . . . Parts Self-Destructed . | . . . . . Prevented . | . . . . . Parts Restored . | . . . . . Kills | -11 -10 -10 -10 -9 ------- Run | Yrd Mat Min Exi Min Combat Hostiles Destroyed 6 | . 4 . . 2 Guns 6 | . 4 . . 2 Classes Destroyed 4 | 1 2 . . 1 Recycler 1 | 1 . . . . Swarmer 2 | . 2 . . . Grunt 2 | . 2 . . . Assembled 2 | . . . . 2 Best Kill Streak 2 | 1 2 . . 2 Combat Bots Only 2 | . 2 . . 2 Max Kills in Single Turn 1 | 1 1 . . 1 Gunslinging . | . . . . . Exploded . | . . . . . Melee . | . . . . . Uniques/NPCs Destroyed . | . . . . . Combat | -11 -10 -10 -10 -9 -------- Run | Yrd Mat Min Exi Min Hostile Shots Fired 53 | . 23 . . 30 Missed 12 | . 6 . . 6 Hits 41 | . 17 . . 24 Projectile 41 | . 17 . . 24 AOE 6 | . . . . 6 Part Disruptions 1 | . . . . 1 Damage Taken 699 | . 178 . . 521 Core 258 | . 20 . . 238 Absorbed by Shields . | . . . . . Core Remaining (%) 100 | 100 . . . . Volleys Fired 41 | 1 24 . . 16 Largest 1 | 1 1 . . 1 Hottest 40 | 20 40 . . 40 Shots Fired 41 | 1 24 . . 16 Gun 41 | 1 24 . . 16 Cannon . | . . . . . Launcher . | . . . . . Special . | . . . . . Kinetic 33 | 1 22 . . 10 Thermal 8 | . 2 . . 6 Explosive . | . . . . . Electromagnetic . | . . . . . Robot Hit Streak 10 | 1 8 . . 10 Robot Miss Streak 2 | . 2 . . 2 Penetration Max . | . . . . . Secondary Targets . | . . . . . Shots Hit Robots 22 | 1 13 . . 8 Core Hits 13 | 1 6 . . 6 Critical Kills . | . . . . . Critical Parts Destroyed . | . . . . . Critical Strikes . | . . . . . Melee Attacks . | . . . . . Impact . | . . . . . Slashing . | . . . . . Piercing . | . . . . . Sneak Attacks . | . . . . . Combat Hostiles . | . . . . . Follow-up Attacks . | . . . . . Damage Inflicted 316 | 15 171 . . 130 Guns 316 | 15 171 . . 130 Cannons . | . . . . . Explosions . | . . . . . Melee . | . . . . . Ramming . | . . . . . Kinetic 283 | 15 171 . . 97 Thermal 33 | . . . . 33 Explosive . | . . . . . Electromagnetic . | . . . . . Impact . | . . . . . Slashing . | . . . . . Piercing . | . . . . . Highest Corruption . | . . . . . Average Corruption . | . . . . . Corruption Purged . | . . . . . Corruption Blocked . | . . . . . Overload Shots . | . . . . . Overflow Damage . | . . . . . Projectiles . | . . . . . Explosions . | . . . . . Melee . | . . . . . Knockbacks . | . . . . . Impact . | . . . . . Kinetic . | . . . . . Secondary . | . . . . . Self-Inflicted Damage . | . . . . . Shots . | . . . . . Rammed . | . . . . . Targets Rammed . | . . . . . Kicked . | . . . . . Crushed . | . . . . . Highest Temperature 22 | . . . . 22 Average Temperature 7 | . . . . 7 Received Heat Transfer 118 | . 78 . . 40 Siege Activations . | . . . . . Martial Activations . | . . . . . Shielding Activations . | . . . . . Robots Disrupted . | . . . . . Combat Hostiles . | . . . . . Robots Corrupted . | . . . . . Combat Hostiles . | . . . . . Parts Fried . | . . . . . Impact Corruptions . | . . . . . Robots Melted . | . . . . . Combat Hostiles . | . . . . . Parts Melted . | . . . . . Heat Transferred 75 | . . . . 75 Parts Sabotaged . | . . . . . Parts Stolen . | . . . . . Parts Stripped . | . . . . . Power Chain Reactions . | . . . . . Alert | -11 -10 -10 -10 -9 ------- Run | Yrd Mat Min Exi Min Maximum Alert Level . | . . . . . Low Security (%) 100 | 100 100 100 . 100 Level 1 . | . . . . . Level 2 . | . . . . . Level 3 . | . . . . . Level 4 . | . . . . . Level 5 . | . . . . . High Security . | . . . . . Max Security . | . . . . . Peak Influence 60 | 5 60 23 . . Initial 23 | . . 23 . . Average 7 | . 14 6 . . Influence Increases 95 | 5 90 . . . Destroy 0b10 Robot/C 80 | . 80 . . . Destroy 0b10 Robot/NC 5 | 5 . . . . Destroy Leader 10 | . 10 . . . Influence Decreases 95 | 5 30 60 . . Entered New Map 37 | . . 37 . . Time Decay 58 | 5 30 23 . . Squads Dispatched 1 | . 1 . . . Investigation 1 | . 1 . . . Extermination . | . . . . . Reinforcement . | . . . . . Assault . | . . . . . Garrison . | . . . . . Intercept . | . . . . . Searches Triggered . | . . . . . Construction Impeded . | . . . . . Haulers Reinforced . | . . . . . Active Scanning Responses . | . . . . . Cargo Convoy Interrupts . | . . . . . Stealth | -11 -10 -10 -10 -9 --------- Run | Yrd Mat Min Exi Min Distress Signals 1 | . 1 . . . Communications Jammed . | . . . . . Distress Signals . | . . . . . Times Spotted 28 | . 6 . . 22 Peak Tracking Total 20 | . 4 . . 20 Tactical Retreats . | . . . . . Traps | -11 -10 -10 -10 -9 ------- Run | Yrd Mat Min Exi Min Traps Triggered 1 | . 1 . . . Indirectly . | . . . . . Trap Hack Attempts . | . . . . . Triggered . | . . . . . Disarmed . | . . . . . Reprogrammed . | . . . . . Reused . | . . . . . Traps Extracted . | . . . . . Installed . | . . . . . Triggered . | . . . . . Most Traps Carried 3 | . . 3 3 2 Machines | -11 -10 -10 -10 -9 ---------- Run | Yrd Mat Min Exi Min Machines Disabled . | . . . . . Max in Single Turn . | . . . . . Machines Repaired . | . . . . . Machines Dismantled . | . . . . . Machines Sabotaged . | . . . . . Overloaded Fab Kills . | . . . . . Hacking | -11 -10 -10 -10 -9 --------- Run | Yrd Mat Min Exi Min Machines Accessed 5 | . . . 5 . Terminals . | . . . . . Fabricators . | . . . . . Repair Stations . | . . . . . Recycling Units . | . . . . . Scanalyzers . | . . . . . Garrison Access . | . . . . . Total Hacks 50 | . . . 50 . Successful 50 | . . . 50 . Failed . | . . . . . Catastrophic . | . . . . . Database Lockouts . | . . . . . Manual 2 | . . . 2 . Terminals . | . . . . . Fabricators . | . . . . . Repair Stations . | . . . . . Recycling Units . | . . . . . Scanalyzers . | . . . . . Garrison Access . | . . . . . Terminal Hacks 50 | . . . 50 . Record 49 | . . . 49 . Proto ID Catalog 1 | . . . 1 . Fabricator Hacks . | . . . . . Repair Station Hacks . | . . . . . Recycling Unit Hacks . | . . . . . Scanalyzer . | . . . . . Garrison Access Hacks . | . . . . . Unauthorized Hacks . | . . . . . Terminals . | . . . . . Fabricators . | . . . . . Repair Stations . | . . . . . Recycling Units . | . . . . . Scanalyzers . | . . . . . Garrison Access . | . . . . . Data Cores Recovered . | . . . . . Used . | . . . . . Hacking Detections . | . . . . . Full Trace Events . | . . . . . Feedback Events . | . . . . . Feedback Blocked . | . . . . . Robot Schematics Acquired . | . . . . . Robots Built . | . . . . . Authchips . | . . . . . Time . | . . . . . Total Robot Build Rating . | . . . . . Part Schematics Acquired . | . . . . . Parts Built . | . . . . . Authchips . | . . . . . Time . | . . . . . Total Part Build Rating . | . . . . . Part Studies Acquired . | . . . . . Parts Repaired . | . . . . . Time . | . . . . . Parts Recycled . | . . . . . Recycled Matter . | . . . . . Retrieved Matter . | . . . . . Retrieved Components . | . . . . . Parts Scanalyzed . | . . . . . Part Schematics Acquired . | . . . . . Parts Damaged . | . . . . . Bothacking | -11 -10 -10 -10 -9 ------------ Run | Yrd Mat Min Exi Min Used RIF Installer . | . . . . . Robots Hacked . | . . . . . Non-combat . | . . . . . Combat . | . . . . . Robot Hacks Applied . | . . . . . Relay Couplers Released . | . . . . . Fabnet Peak Effective % . | . . . . . Robots Rewired . | . . . . . Allies Hacked . | . . . . . Hacks Repelled . | . . . . . Allies | -11 -10 -10 -10 -9 -------- Run | Yrd Mat Min Exi Min Total Allies 1 | . . . . 1 Largest Group 1 | . . . . 1 Highest-Rated Group 31 | . . . . 31 Highest-Rated Ally 31 | . . . . 31 Total Orders . | . . . . . Ally Attacks 10 | . . . . 10 Total Damage 150 | . . . . 150 Kills 3 | . . . . 3 Allies Corrupted . | . . . . . Allies Melted . | . . . . . Intel | -11 -10 -10 -10 -9 ------- Run | Yrd Mat Min Exi Min Active Infowar (turns) 628 | . 120 118 335 55 Structural 628 | . 120 118 335 55 Robot Analysis Total . | . . . . . Derelict Logs Recovered 1 | . . 1 . . Drone Launches . | . . . . . Drone Recoveries . | . . . . . Exploration | -11 -10 -10 -10 -9 ------------- Run | Yrd Mat Min Exi Min Turns Passed 725 | 58 159 118 335 55 Spaces Moved 512 | 40 89 94 276 13 Core 9 | 7 . . . 2 Treads . | . . . . . Legs 503 | 33 89 94 276 11 Wheels . | . . . . . Hover . | . . . . . Flight . | . . . . . Fastest Speed 50 | 50 120 120 120 100 Average Speed 119 | 107 120 120 120 122 Slowest Speed 190 | 120 120 120 190 190 Overloaded Moves . | . . . . . Propulsion Burnouts . | . . . . . Robots Hopped . | . . . . . Potential Cave-ins . | . . . . . Cave-ins Triggered . | . . . . . Exploration Rate (%) 24 | 4 20 28 64 8 Regions Visited 4 Branch Regions 3 Pre-discovered Areas 1 | . . . 1 . Known Exits Taken . | . . . . . Unknown Exits Taken 4 | 1 1 1 1 . Scrap Searched . | . . . . . Spaces Dug . | . . . . . Terrain Destroyed . | . . . . . Melee . | . . . . . Projectile . | . . . . . AOE . | . . . . . Terrain Rammed . | . . . . . Walls Destroyed . | . . . . . Machines Disabled . | . . . . . Actions | -11 -10 -10 -10 -9 --------- Run | Yrd Mat Min Exi Min Total 587 | 54 117 99 280 37 Wait 8 | . . 3 . 5 Move 508 | 39 88 93 275 13 Hop . | . . . . . Pick Up 17 | 9 3 3 2 . Fast Attach . | . . . . . Attach 7 | 5 2 . . . Detach . | . . . . . Swap 2 | . . . 1 1 Drop 4 | . . . 2 2 Fire 41 | 1 24 . . 16 Melee . | . . . . . Ram . | . . . . . Kick . | . . . . . Crush . | . . . . . Escape Stasis . | . . . . . Rewire . | . . . . . Trap . | . . . . . Miscellaneous . | . . . . . Route ------- -11/Scrapyard -10/Materials -10/Mines -10/Exiles (discovered 2 exits: [*Min x2]) -9/Mines History --------- Turn | Location | Event 4 | -11/Scrapyard | Discovered new exit (range 16) 59 | -11/Scrapyard | Entered Materials 117 | -10/Materials | Discovered new exit (range 12) 218 | -10/Materials | Entered Mines 265 | -10/Mines | Found a hidden stash of uninstalled traps 308 | -10/Mines | Build established: Mutant 325 | -10/Mines | Learned Materials security intel 329 | -10/Mines | Deemed a non-threat by the Exiles lab entrance 329 | -10/Mines | Discovered new exit (range 6) 336 | -10/Mines | Entered Exiles 356 | -10/Exiles | Discovered new exit (range 15) 372 | -10/Exiles | Met 8R-AWN 394 | -10/Exiles | Met EX-HEX 434 | -10/Exiles | Met EX-BIN 455 | -10/Exiles | Aligned with FarCom system 456 | -10/Exiles | Given EX-Vault access code 513 | -10/Exiles | Opened EX-Vault 523 | -10/Exiles | Found Latent Energy Streamer 548 | -10/Exiles | Warned to stay clear of 0b10 Research branches 563 | -10/Exiles | Exiles lab attacked by MAIN.C 591 | -10/Exiles | Learned location of Zion (-7) 653 | -10/Exiles | Discovered new exit (range 14) 671 | -10/Exiles | Left Exiles lab with Latent Energy Streamer 671 | -10/Exiles | Entered Mines 672 | -9/Mines | Met a Derelict testing a Signal Generator 672 | -9/Mines | Assembled infested the area 677 | -9/Mines | Assisted by a Guerilla fighting off Assembled 717 | -9/Mines | Core integrity fell below 50% 726 | -9/Mines | Destroyed by D-53 Grenadier with Mini Grenade Launcher Last Messages --------------- 00696_ as-37565 destroyed. 00697_ as-10842 destroyed. 00701_ 2J-M9J(g) heat short circuits Beamcaster. 00703_ 2J-M9J(g) destroyed. 00706_ as-67699 destroyed. 00708_ Acquired 33 matter. 00711_ as-11836 destroyed. 00713_ Dropped Heavy Explosive Trap. 00714_ as-23859 destroyed. 00717_ as-55317 destroyed. 00717_ as-93731 destroyed. 00717_ Assault Rifle destroyed. 00717_ Lgt. Ion Engine destroyed. 00717_ as-66863 destroyed. 00717_ as-20056 destroyed. 00717_ as-36393 destroyed. 00719_ as-24646 destroyed. [Achievement: Slippery One] 00724_ Sml. Laser destroyed. 00724_ Aluminum Leg destroyed. Map ----- +----------------------------------------------------+ | ??????????????????????????????????????? | | ??????????????????????????????????????? | | ??????????????????????????????????????? | | ??????????????????????????????????????? | | ??????????????????????????????????????? | | ??????????????????????????????????????? | | ??????????????????????????????????????? | | ??????????????????????????????????????? | | ??????????????????????????????????????? | | ??????????????????????????????????????? | | ??????????????????????????????????????? | | ??????????????????????????????????????? | | ??????????????????????????????????????? | | ??????????????????????????????????????? | | ??????????????????????????????????????? | | ??????????????????????????????????????? | | ??????????????????????????????????????? | | ??????????????????????????????????????? | | ??????????????????????????????????????? | | ???????##### ???????????????s?????????? | | ???????##### ???????????????s?????????? | | ??????? ######??????????s????????? | | ?????????## ######## ???????s????????? | | ????????### #### ????????????????? | | ????????### # ##????????????????? | | ????????## @ ##????????????????? | | ????????### ##????????????????? | | ????????### ##????????????????? | | ????????## % ##????????????????? | | ???????? # ##????????????????? | | ???## ? # ###????????????????? | | ???## ###????????????????? | | ???## ###?????????????????? | | ??### #?????????????????? | | ??## dd ???????????????????? | | ??## ??????????????????? | | ??## < ??????????????????? | | ??### % # ?????????????????? | | ???## ?????????????????? | | ???### # # %?????????????????? | | ????????## ## ?????????????????? | | ????????## ## # ? ?????????????????? | | ????????????##### ???????????????????? | | ?????????????#####????????????????????? | | ??????????????????????????????????????? | | ??????????????????????????????????????? | | ??????????????????????????????????????? | | ??????????????????????????????????????? | | ??????????????????????????????????????? | | ??????????????????????????????????????? | +----------------------------------------------------+ Best States ------------- Heat Dissipation 25 Energy Generation 10 Energy Capacity 125 Matter Stores 300 Matter Capacity 300 Sight Range 16 Terrain Scan Density 10 Evasion (%) 55 Item Schematics ----------------- None Robot Schematics ------------------ None Fabricated ------------ Nothing Repaired ---------- Nothing Studied --------- None Alien Tech Used ----------------- None Achievements -------------- Hunted Slippery One Challenges ------------ None Game ------ Seed DisruptionTerrainDetector Manual? 0 Play Time 00:17:08 Cumulative 19.7 hours Start 2026.09.19 @ 18:59:08 End 2026.09.19 @ 19:13:36 Sessions 1 Manual Loads 0 Difficulty Rogue Special Mode None Game No. 23 Rogue 23 Adventurer 0 Explorer 0 Win Type - Total 0 Types 0/0/0/0/0/0/0/0/0/0 Lore% 8 Gallery% 18 Achievement% 15 Wizard Run 0 Options --------- Layout 1 ASCII 0 Keyboard 0 Movement Mouse Keybinds 0 Fullscreen 1 Font 24/Smallcaps Map View 50x35 Zoom Use 0% Tactical HUD 1 Map Filters NONE Filters NONE Steam 1 RUN: 35779084-1916-4cc2-ae40-c943090b480e